fUSD/lending_fUSD_20240301
["ID","MTS","AMOUNT","RATE_DAILY","PERIOD"]
[315994216,1709317846700,-500.0,0.00022027,2]
[315994218,1709317846709,-2854.79,0.00022027,2]
[315994220,1709317846718,-500.0,0.00022027,2]
[315994222,1709317846728,-500.0,0.00022027,2]
[315994224,1709317846736,-1399.29,0.00022027,2]
[315994226,1709317846746,-500.0,0.00022027,2]
[315994228,1709317846754,-1726.15,0.00022027,2]
[315994230,1709317846763,-801.83,0.00022027,2]
[315994232,1709317846773,-500.0,0.00022027,2]
[315994235,1709317846783,-500.0,0.00022027,2]
[315994238,1709317846793,-1086.93,0.00022027,2]
[315994240,1709317846802,-564.94,0.00022027,2]
[315994243,1709317846811,-272.71477232,0.00022027,2]
[315994245,1709317846820,-500.0,0.00022027,2]
[315994247,1709317846829,-500.0,0.00022027,2]
[315994249,1709317846839,-1293.73,0.00022027,2]
[315994251,1709317846848,-500.0,0.00022027,2]
[315994253,1709317846857,-500.0,0.00022027,2]
[315994255,1709317846867,-500.0,0.00022027,2]
[315994257,1709317846876,-500.0,0.00022027,2]
[315994259,1709317846887,-500.0,0.00022027,2]
[315994261,1709317846896,-516.4546968,0.00022027,2]
[315994263,1709317846907,-500.0,0.00022027,2]
[315994265,1709317846916,-448.2,0.00022027,2]
[315994267,1709317846925,-500.0,0.00022027,2]
[315994269,1709317846935,-500.0,0.00022027,2]
[315994271,1709317846944,-1559.47,0.00022027,2]
[315994273,1709317846953,-500.0,0.00022027,2]
[315994275,1709317846962,-500.0,0.00022027,2]
[315994277,1709317846971,-2822.15,0.00022027,2]
[315994279,1709317846981,-500.0,0.00022027,2]
[315994281,1709317846990,-500.0,0.00022027,2]
[315994283,1709317846999,-500.0,0.00022027,2]
[315994285,1709317847008,-500.0,0.00022027,2]
[315994287,1709317847017,-500.0,0.00022027,2]
[315994289,1709317847026,-526.91,0.00022027,2]
[315994290,1709317847036,-500.0,0.00022027,2]
[315994293,1709317847045,-500.0,0.00022027,2]
[315994295,1709317847055,-500.0,0.00022027,2]
[315994297,1709317847064,-500.0,0.00022027,2]
[315994299,1709317847087,-500.0,0.00022027,2]
[315994301,1709317847112,-500.0,0.00022027,2]
[315994303,1709317847122,-500.0,0.00022027,2]
[315994304,1709317847131,-181.27,0.00022088,2]
[315994306,1709317847141,-275.87502824,0.00022097,2]
[315994308,1709317847150,-11064.0,0.000221,2]
[315994310,1709317847159,-2734.57,0.000221,2]
[315994312,1709317847169,-20926.51,0.000221,2]
[315994315,1709317847178,-1584.42,0.000221,2]
[315994316,1709317847188,-290.53,0.00022109,2]
[315994318,1709317847197,-150.0,0.0002211,2]
[315994321,1709317847207,-234.06410999,0.00022126,2]
[315994322,1709317847216,-500.0,0.00022135,2]
[315994324,1709317847225,-500.0,0.00022136,2]
[315994326,1709317847235,-500.0,0.00022136,2]
[315994328,1709317847244,-500.0,0.00022136,2]
[315994330,1709317847254,-521.19501827,0.00022136,2]
[315994332,1709317847264,-500.0,0.00022136,2]
[315994335,1709317847273,-500.0,0.00022136,2]
[315994337,1709317847285,-500.0,0.00022136,2]
[315994339,1709317847294,-500.0,0.00022136,2]
[315994341,1709317847303,-500.0,0.00022136,2]
[315994343,1709317847312,-500.0,0.00022136,2]
[315994344,1709317847321,-500.0,0.00022136,2]
[315994347,1709317847331,-500.0,0.00022136,2]
[315994348,1709317847340,-255.11,0.00022136,2]
[315994350,1709317847349,-500.0,0.00022136,2]
[315994352,1709317847359,-214.61966704,0.00022136,2]
[315994354,1709317847368,-500.0,0.00022136,2]
[315994356,1709317847377,-575.93936728,0.00022136,2]
[315994358,1709317847386,-500.0,0.00022136,2]
[315994360,1709317847396,-500.0,0.00022136,2]
[315994362,1709317847405,-500.0,0.00022136,2]
[315994364,1709317847414,-500.0,0.00022136,2]
[315994366,1709317847424,-500.0,0.00022136,2]
[315994368,1709317847434,-500.0,0.00022136,2]
[315994370,1709317847443,-500.0,0.00022136,2]
[315994372,1709317847452,-500.0,0.00022136,2]
[315994374,1709317847463,-509.42031207,0.00022136,2]
[315994376,1709317847473,-500.0,0.00022136,2]
[315994377,1709317847484,-500.0,0.00022136,2]
[315994378,1709317847494,-535.7985071,0.00022136,2]
[315994379,1709317847504,-500.0,0.00022136,2]
[315994380,1709317847514,-500.0,0.00022136,2]
[315994381,1709317847523,-500.0,0.00022136,2]
[315994382,1709317847535,-500.0,0.00022136,2]
[315994383,1709317847544,-500.0,0.00022136,2]
[315994385,1709317847554,-500.0,0.00022136,2]
[315994387,1709317847563,-500.0,0.00022136,2]
[315994389,1709317847573,-500.0,0.00022136,2]
[315994391,1709317847582,-500.0,0.00022136,2]
[315994393,1709317847592,-500.0,0.00022136,2]
[315994395,1709317847602,-500.0,0.00022136,2]
[315994396,1709317847611,-500.0,0.00022136,2]
[315994397,1709317847620,-500.0,0.00022136,2]
[315994398,1709317847630,-500.0,0.00022136,2]
[315994399,1709317847640,-529.36953642,0.00022136,2]
[315994400,1709317847649,-500.0,0.00022136,2]
[315994401,1709317847660,-500.0,0.00022136,2]
[315994402,1709317847669,-500.0,0.00022136,2]
[315994404,1709317847679,-500.0,0.00022136,2]
[315994406,1709317847689,-550.34823905,0.00022136,2]
[315994408,1709317847699,-500.0,0.00022136,2]
[315994410,1709317847710,-584.45489319,0.00022136,2]
[315994412,1709317847718,-449.96634561,0.00022136,2]
[315994414,1709317847728,-500.0,0.00022136,2]
[315994416,1709317847738,-500.0,0.00022136,2]
[315994418,1709317847748,-500.0,0.00022136,2]
[315994420,1709317847758,-500.0,0.00022136,2]
[315994422,1709317847768,-500.0,0.00022136,2]
[315994424,1709317847776,-500.0,0.00022136,2]
[315994426,1709317847787,-500.0,0.00022136,2]
[315994428,1709317847796,-1110.01,0.00022136,2]
[315994430,1709317847806,-500.0,0.00022136,2]
[315994432,1709317847816,-500.0,0.00022136,2]
[315994434,1709317847826,-467.50669707,0.00022136,2]
[315994436,1709317847835,-500.0,0.00022136,2]
[315994438,1709317847844,-500.0,0.00022136,2]
[315994440,1709317847854,-337.64,0.00022136,2]
[315994442,1709317847864,-500.0,0.00022136,2]
[315994444,1709317847874,-612.61,0.00022136,2]
[315994446,1709317847884,-500.0,0.00022136,2]
[315994448,1709317847897,-500.0,0.00022136,2]
[315994450,1709317847907,-500.0,0.00022136,2]
[315994452,1709317847918,-647.91,0.00022136,2]
[315994454,1709317847927,-601.8,0.00022136,2]
[315994457,1709317847938,-500.0,0.00022136,2]
[315994458,1709317847947,-500.0,0.00022136,2]
[315994461,1709317847958,-500.0,0.00022136,2]
[315994462,1709317847968,-500.0,0.00022136,2]
[315994464,1709317847980,-500.0,0.00022136,2]
[315994466,1709317847990,-500.0,0.00022136,2]
[315994468,1709317847999,-500.0,0.00022136,2]
[315994470,1709317848008,-500.0,0.00022136,2]
[315994472,1709317848017,-500.0,0.00022136,2]
[315994474,1709317848028,-500.0,0.00022136,2]
[315994477,1709317848038,-500.0,0.00022136,2]
[315994479,1709317848049,-500.0,0.00022136,2]
[315994481,1709317848058,-500.0,0.00022136,2]
[315994482,1709317848069,-500.0,0.00022136,2]
[315994485,1709317848079,-500.0,0.00022136,2]
[315994486,1709317848089,-500.0,0.00022136,2]
[315994488,1709317848098,-172.09,0.00022136,2]
[315994490,1709317848108,-500.0,0.00022136,2]
[315994492,1709317848118,-500.0,0.00022136,2]
[315994495,1709317848129,-518.17,0.00022136,2]
[315994497,1709317848139,-508.64,0.00022136,2]
[315994498,1709317848149,-2461.82,0.00022136,2]
[315994501,1709317848159,-500.0,0.00022136,2]
[315994503,1709317848170,-500.0,0.00022136,2]
[315994504,1709317848180,-500.0,0.00022136,2]
[315994506,1709317848189,-559.21,0.00022136,2]
[315994508,1709317848199,-500.0,0.00022136,2]
[315994510,1709317848208,-150.0,0.00022136,2]
[315994513,1709317848219,-4465.4,0.00022136,2]
[315994515,1709317848229,-500.0,0.00022136,2]
[315994516,1709317848239,-500.0,0.00022136,2]
[315994518,1709317848248,-500.0,0.00022136,2]
[315994520,1709317848257,-500.0,0.00022136,2]
[315994522,1709317848266,-500.0,0.00022136,2]
[315994524,1709317848276,-500.0,0.00022136,2]
[315994527,1709317848287,-500.0,0.00022136,2]
[315994529,1709317848297,-157.07078763,0.00022136,2]
[315994530,1709317848306,-500.0,0.00022136,2]
[315994532,1709317848316,-500.0,0.00022136,2]
[315994534,1709317848325,-500.0,0.00022136,2]
[315994536,1709317848335,-565.57,0.00022136,2]
[315994537,1709317848345,-320.0,0.00022136,2]
[315994538,1709317848355,-500.0,0.00022136,2]
[315994539,1709317848364,-500.0,0.00022136,2]
[315994540,1709317848374,-1850.54,0.00022136,2]
[315994541,1709317848384,-500.0,0.00022136,2]
[315994542,1709317848394,-500.0,0.00022136,2]
[315994543,1709317848404,-2115.38,0.00022136,2]
[315994544,1709317848413,-500.0,0.00022136,2]
[315994545,1709317848423,-500.0,0.00022136,2]
[315994546,1709317848433,-500.0,0.00022136,2]
[315994547,1709317848442,-500.0,0.00022136,2]
[315994548,1709317848452,-500.0,0.00022136,2]
[315994549,1709317848462,-802.17,0.00022136,2]
[315994550,1709317848473,-500.0,0.00022136,2]
[315994551,1709317848483,-500.0,0.00022136,2]
[315994553,1709317848495,-500.0,0.00022136,2]
[315994555,1709317848506,-500.0,0.00022136,2]
[315994557,1709317848517,-500.0,0.00022136,2]
[315994559,1709317848528,-650.18,0.00022136,2]
[315994560,1709317848538,-811.78,0.00022136,2]
[315994563,1709317848548,-1005.15,0.00022136,2]
[315994565,1709317848558,-569.38,0.00022136,2]
[315994566,1709317848567,-500.0,0.00022136,2]
[315994568,1709317848576,-500.0,0.00022136,2]
[315994570,1709317848586,-500.0,0.00022136,2]
[315994572,1709317848595,-500.0,0.00022136,2]
[315994575,1709317848605,-500.0,0.00022136,2]
[315994576,1709317848615,-672.8,0.00022136,2]
[315994579,1709317848625,-500.0,0.00022136,2]
[315994580,1709317848634,-500.0,0.00022136,2]
[315994582,1709317848644,-598.32,0.00022136,2]
[315994584,1709317848654,-500.0,0.00022136,2]
[315994586,1709317848663,-617.99,0.00022136,2]
[315994588,1709317848673,-3205.32,0.00022136,2]
[315994590,1709317848683,-500.0,0.00022136,2]
[315994591,1709317848692,-877.57,0.00022136,2]
[315994593,1709317848702,-599.55,0.00022136,2]
[315994595,1709317848712,-500.0,0.00022136,2]
[315994597,1709317848722,-500.0,0.00022136,2]
[315994599,1709317848731,-387.67,0.00022136,2]
[315994601,1709317848741,-500.0,0.00022136,2]
[315994603,1709317848751,-500.0,0.00022136,2]
[315994605,1709317848761,-500.0,0.00022136,2]
[315994607,1709317848771,-500.0,0.00022136,2]
[315994609,1709317848780,-1714.95,0.00022136,2]
[315994611,1709317848789,-500.0,0.00022136,2]
[315994613,1709317848798,-536.15,0.00022136,2]
[315994615,1709317848807,-550.19,0.00022136,2]
[315994616,1709317848816,-628.35,0.00022136,2]
[315994619,1709317848825,-824.61,0.00022136,2]
[315994621,1709317848836,-924.01,0.00022136,2]
[315994622,1709317848845,-500.0,0.00022136,2]
[315994624,1709317848856,-500.0,0.00022136,2]
[315994626,1709317848871,-599.18,0.00022136,2]
[315994629,1709317848882,-500.0,0.00022136,2]
[315994630,1709317848892,-1048.17,0.00022136,2]
[315994632,1709317848902,-625.63,0.00022136,2]
[315994634,1709317848912,-500.0,0.00022136,2]
[315994636,1709317848922,-500.0,0.00022136,2]
[315994638,1709317848932,-830.98,0.00022136,2]
[315994640,1709317848942,-500.0,0.00022136,2]
[315994642,1709317848951,-615.27,0.00022136,2]
[315994644,1709317848962,-500.0,0.00022136,2]
[315994646,1709317848971,-500.0,0.00022136,2]
[315994648,1709317848980,-500.0,0.00022136,2]
[315994650,1709317848990,-500.0,0.00022136,2]
[315994652,1709317848999,-500.0,0.00022136,2]
[315994654,1709317849009,-2854.79,0.00022136,2]
[315994656,1709317849020,-500.0,0.00022136,2]
[315994657,1709317849031,-166.31300729,0.00022136,2]
[315994658,1709317849040,-1399.29,0.00022136,2]
[315994659,1709317849049,-500.0,0.00022136,2]
[315994660,1709317849059,-1726.15,0.00022136,2]
[315994661,1709317849068,-801.83,0.00022136,2]
[315994662,1709317849078,-500.0,0.00022136,2]
[315994664,1709317849087,-500.0,0.00022136,2]
[315994666,1709317849097,-1086.93,0.00022136,2]
[315994668,1709317849106,-564.94,0.00022136,2]
[315994669,1709317849115,-500.0,0.00022136,2]
[315994671,1709317849125,-500.0,0.00022136,2]
[315994673,1709317849135,-1293.73,0.00022136,2]
[315994676,1709317849145,-500.0,0.00022136,2]
[315994677,1709317849155,-500.0,0.00022136,2]
[315994679,1709317849165,-500.0,0.00022136,2]
[315994681,1709317849176,-500.0,0.00022136,2]
[315994683,1709317849187,-500.0,0.00022136,2]
[315994685,1709317849196,-500.0,0.00022136,2]
[315994687,1709317849207,-500.0,0.00022136,2]
[315994690,1709317849217,-1559.47,0.00022136,2]
[315994691,1709317849228,-500.0,0.00022136,2]
[315994694,1709317849238,-500.0,0.00022136,2]
[315994695,1709317849247,-500.0,0.00022136,2]
[315994697,1709317849257,-2822.15,0.00022136,2]
[315994699,1709317849267,-500.0,0.00022136,2]
[315994701,1709317849277,-500.0,0.00022136,2]
[315994703,1709317849288,-500.0,0.00022136,2]
[315994705,1709317849297,-500.0,0.00022136,2]
[315994707,1709317849309,-500.0,0.00022136,2]
[315994709,1709317849319,-526.91,0.00022136,2]
[315994711,1709317849329,-500.0,0.00022136,2]
[315994713,1709317849338,-500.0,0.00022136,2]
[315994715,1709317849347,-500.0,0.00022136,2]
[315994718,1709317849357,-500.0,0.00022136,2]
[315994720,1709317849367,-500.0,0.00022136,2]
[315994721,1709317849376,-500.0,0.00022136,2]
[315994723,1709317849386,-515.96,0.00022137,2]
[315994726,1709317849395,-150.0,0.00022181,2]
[315994727,1709317849405,-347.7279917,0.00022192,10]
[315994729,1709317849415,-149889.02776678,0.00022193,2]
[315994731,1709317849426,-5760.75368415,0.00022193,2]
[315994734,1709317849436,-50000.0,0.00022193,2]
[315994736,1709317849446,-8561.68464554,0.00022193,2]
[315994737,1709317849456,-4961.54057628,0.00022193,2]
[315994739,1709317849466,-181.27,0.00022197,2]
[315994742,1709317849475,-150.0,0.00022226,2]
[315994744,1709317849486,-500.0,0.00022245,2]
[315994745,1709317849496,-500.0,0.00022246,2]
[315994747,1709317849505,-500.0,0.00022246,2]
[315994749,1709317849515,-500.0,0.00022246,2]
[315994751,1709317849525,-500.0,0.00022246,2]
[315994753,1709317849535,-500.0,0.00022246,2]
[315994755,1709317849544,-500.0,0.00022246,2]
[315994757,1709317849554,-267.95843296,0.00022246,2]
[315994759,1709317849563,-261.99,0.00022246,2]
[315994761,1709317849574,-500.0,0.00022246,2]
[315994764,1709317849584,-500.0,0.00022246,2]
[315994766,1709317849594,-500.0,0.00022246,2]
[315994768,1709317849603,-500.0,0.00022246,2]
[315994770,1709317849613,-500.0,0.00022246,2]
[315994771,1709317849623,-500.0,0.00022246,2]
[315994773,1709317849632,-500.0,0.00022246,2]
[315994776,1709317849642,-635.52045183,0.00022246,2]
[315994778,1709317849652,-157.77571422,0.00022246,2]
[315994780,1709317849663,-500.0,0.00022246,2]
[315994781,1709317849673,-500.0,0.00022246,2]
[315994783,1709317849684,-1110.01,0.00022246,2]
[315994785,1709317849695,-303.80423081,0.00022246,2]
[315994788,1709317849705,-500.0,0.00022246,2]
[315994790,1709317849715,-500.0,0.00022246,2]
[315994792,1709317849726,-500.0,0.00022246,2]
[315994794,1709317849737,-500.0,0.00022246,2]
[315994796,1709317849746,-507.52,0.00022246,2]
[315994798,1709317849756,-500.0,0.00022246,2]
[315994799,1709317849766,-500.0,0.00022246,2]
[315994801,1709317849777,-500.0,0.00022246,2]
[315994802,1709317849788,-500.0,0.00022246,2]
[315994804,1709317849797,-500.0,0.00022246,2]
[315994806,1709317849807,-500.0,0.00022246,2]
[315994808,1709317849817,-500.0,0.00022246,2]
[315994809,1709317849827,-393.90679566,0.00022246,2]
[315994811,1709317849836,-500.0,0.00022246,2]
[315994812,1709317849846,-161.12,0.00022246,2]
[315994814,1709317849855,-500.0,0.00022246,2]
[315994816,1709317849866,-500.0,0.00022246,2]
[315994817,1709317849876,-500.0,0.00022246,2]
[315994819,1709317849891,-500.0,0.00022246,2]
[315994821,1709317849901,-562.05,0.00022246,2]
[315994823,1709317849911,-500.0,0.00022246,2]
[315994824,1709317849921,-2461.82,0.00022246,2]
[315994826,1709317849934,-500.0,0.00022246,2]
[315994828,1709317849944,-500.0,0.00022246,2]
[315994829,1709317849954,-542.07360208,0.00022246,2]
[315994831,1709317849965,-150.0,0.00022246,2]
[315994833,1709317849975,-4465.4,0.00022246,2]
[315994834,1709317849985,-500.0,0.00022246,2]
[315994836,1709317849996,-500.0,0.00022246,2]
[315994838,1709317850006,-500.0,0.00022246,2]
[315994840,1709317850016,-396.35403231,0.00022246,2]
[315994841,1709317850027,-500.0,0.00022246,2]
[315994843,1709317850040,-500.0,0.00022246,2]
[315994845,1709317850050,-500.0,0.00022246,2]
[315994846,1709317850060,-318.97,0.00022246,2]
[315994848,1709317850071,-500.0,0.00022246,2]
[315994850,1709317850081,-500.0,0.00022246,2]
[315994851,1709317850091,-1850.54,0.00022246,2]
[315994853,1709317850102,-500.0,0.00022246,2]
[315994855,1709317850113,-2115.38,0.00022246,2]
[315994857,1709317850123,-500.0,0.00022246,2]
[315994859,1709317850133,-500.0,0.00022246,2]
[315994860,1709317850142,-500.0,0.00022246,2]
[315994862,1709317850154,-500.0,0.00022246,2]
[315994864,1709317850165,-500.0,0.00022246,2]
[315994866,1709317850175,-802.17,0.00022246,2]
[315994867,1709317850185,-500.0,0.00022246,2]
[315994869,1709317850196,-500.0,0.00022246,2]
[315994871,1709317850206,-500.0,0.00022246,2]
[315994873,1709317850217,-500.0,0.00022246,2]
[315994875,1709317850227,-650.18,0.00022246,2]
[315994877,1709317850239,-500.0,0.00022246,2]
[315994879,1709317850248,-811.78,0.00022246,2]
[315994880,1709317850259,-1005.15,0.00022246,2]
[315994882,1709317850269,-569.38,0.00022246,2]
[315994884,1709317850279,-500.0,0.00022246,2]
[315994886,1709317850291,-500.0,0.00022246,2]
[315994888,1709317850301,-500.0,0.00022246,2]
[315994890,1709317850311,-500.0,0.00022246,2]
[315994891,1709317850321,-500.0,0.00022246,2]
[315994893,1709317850331,-672.8,0.00022246,2]
[315994895,1709317850342,-500.0,0.00022246,2]
[315994897,1709317850352,-500.0,0.00022246,2]
[315994899,1709317850362,-598.32,0.00022246,2]
[315994901,1709317850371,-500.0,0.00022246,2]
[315994903,1709317850381,-617.99,0.00022246,2]
[315994905,1709317850391,-500.0,0.00022246,2]
[315994907,1709317850401,-3205.32,0.00022246,2]
[315994909,1709317850411,-877.57,0.00022246,2]
[315994911,1709317850421,-599.55,0.00022246,2]
[315994913,1709317850431,-500.0,0.00022246,2]
[315994915,1709317850442,-500.0,0.00022246,2]
[315994917,1709317850452,-500.0,0.00022246,2]
[315994919,1709317850462,-500.0,0.00022246,2]
[315994921,1709317850473,-500.0,0.00022246,2]
[315994923,1709317850483,-500.0,0.00022246,2]
[315994925,1709317850493,-1714.95,0.00022246,2]
[315994928,1709317850504,-500.0,0.00022246,2]
[315994930,1709317850514,-536.15,0.00022246,2]
[315994932,1709317850524,-550.19,0.00022246,2]
[315994934,1709317850534,-628.35,0.00022246,2]
[315994936,1709317850544,-824.61,0.00022246,2]
[315994938,1709317850554,-924.01,0.00022246,2]
[315994939,1709317850564,-500.0,0.00022246,2]
[315994941,1709317850576,-500.0,0.00022246,2]
[315994944,1709317850587,-599.18,0.00022246,2]
[315994945,1709317850597,-500.0,0.00022246,2]
[315994946,1709317850607,-1048.17,0.00022246,2]
[315994947,1709317850617,-625.63,0.00022246,2]
[315994948,1709317850629,-500.0,0.00022246,2]
[315994949,1709317850639,-500.0,0.00022246,2]
[315994950,1709317850649,-830.98,0.00022246,2]
[315994951,1709317850658,-500.0,0.00022246,2]
[315994952,1709317850669,-615.27,0.00022246,2]
[315994953,1709317850679,-500.0,0.00022246,2]
[315994954,1709317850689,-500.0,0.00022246,2]
[315994955,1709317850700,-500.0,0.00022246,2]
[315994956,1709317850711,-500.0,0.00022246,2]
[315994957,1709317850722,-500.0,0.00022246,2]
[315994959,1709317850732,-2854.79,0.00022246,2]
[315994960,1709317850742,-500.0,0.00022246,2]
[315994962,1709317850752,-1399.29,0.00022246,2]
[315994964,1709317850762,-500.0,0.00022246,2]
[315994966,1709317850771,-1726.15,0.00022246,2]
[315994968,1709317850782,-801.83,0.00022246,2]
[315994970,1709317850793,-500.0,0.00022246,2]
[315994972,1709317850804,-500.0,0.00022246,2]
[315994974,1709317850815,-1086.93,0.00022246,2]
[315994976,1709317850825,-564.94,0.00022246,2]
[315994978,1709317850836,-500.0,0.00022246,2]
[315994980,1709317850846,-1293.73,0.00022246,2]
[315994982,1709317850856,-500.0,0.00022246,2]
[315994985,1709317850867,-500.0,0.00022246,2]
[315994987,1709317850877,-500.0,0.00022246,2]
[315994989,1709317850892,-500.0,0.00022246,2]
[315994991,1709317850902,-500.0,0.00022246,2]
[315994993,1709317850913,-500.0,0.00022246,2]
[315994995,1709317850924,-500.0,0.00022246,2]
[315994997,1709317850934,-1559.47,0.00022246,2]
[315994999,1709317850944,-500.0,0.00022246,2]
[315995001,1709317850955,-500.0,0.00022246,2]
[315995003,1709317850965,-500.0,0.00022246,2]
[315995005,1709317850976,-2822.15,0.00022246,2]
[315995007,1709317850987,-500.0,0.00022246,2]
[315995009,1709317850999,-500.0,0.00022246,2]
[315995011,1709317851010,-500.0,0.00022246,2]
[315995013,1709317851021,-500.0,0.00022246,2]
[315995015,1709317851032,-500.0,0.00022246,2]
[315995017,1709317851043,-526.91,0.00022246,2]
[315995018,1709317851053,-500.0,0.00022246,2]
[315995019,1709317851064,-500.0,0.00022246,2]
[315995020,1709317851075,-500.0,0.00022246,2]
[315995021,1709317851086,-500.0,0.00022246,2]
[315995022,1709317851097,-500.0,0.00022246,2]
[315995023,1709317851109,-500.0,0.00022246,2]
[315995024,1709317851121,-150.0,0.00022266,2]
[315995025,1709317851132,-150.0,0.00022276,2]
[315995026,1709317851142,-150.0,0.00022295,2]
[315995027,1709317851153,-154.0,0.00022305,2]
[315995028,1709317851163,-181.27,0.00022306,2]
[315995030,1709317851174,-150.0,0.00022312,2]
[315995032,1709317851184,-1335.2731894,0.00022329,2]
[315995034,1709317851195,-500.0,0.00022355,2]
[315995036,1709317851206,-500.0,0.00022355,2]
[315995038,1709317851216,-500.0,0.00022356,2]
[315995040,1709317851228,-440.26395162,0.00022356,2]
[315995042,1709317851238,-500.0,0.00022356,2]
[315995044,1709317851249,-500.0,0.00022356,2]
[315995046,1709317851260,-500.0,0.00022356,2]
[315995048,1709317851270,-291.20948178,0.00022356,2]
[315995051,1709317851281,-500.0,0.00022356,2]
[315995053,1709317851292,-380.90406045,0.00022356,2]
[315995055,1709317851303,-500.0,0.00022356,2]
[315995057,1709317851314,-519.82,0.00022356,2]
[315995059,1709317851325,-1110.01,0.00022356,2]
[315995060,1709317851335,-500.0,0.00022356,2]
[315995062,1709317851346,-500.0,0.00022356,2]
[315995063,1709317851357,-500.0,0.00022356,2]
[315995064,1709317851369,-500.0,0.00022356,2]
[315995066,1709317851380,-500.0,0.00022356,2]
[315995068,1709317851391,-288.66997379,0.00022356,2]
[315995069,1709317851402,-500.0,0.00022356,2]
[315995070,1709317851413,-500.0,0.00022356,2]
[315995071,1709317851424,-500.0,0.00022356,2]
[315995072,1709317851434,-500.0,0.00022356,2]
[315995073,1709317851445,-500.0,0.00022356,2]
[315995074,1709317851456,-500.0,0.00022356,2]
[315995075,1709317851467,-500.0,0.00022356,2]
[315995076,1709317851477,-500.0,0.00022356,2]
[315995077,1709317851488,-500.0,0.00022356,2]
[315995078,1709317851498,-500.0,0.00022356,2]
[315995079,1709317851510,-2461.82,0.00022356,2]
[315995080,1709317851520,-500.0,0.00022356,2]
[315995081,1709317851531,-150.0,0.00022356,2]
[315995082,1709317851543,-4465.4,0.00022356,2]
[315995083,1709317851554,-500.0,0.00022356,2]
[315995084,1709317851564,-500.0,0.00022356,2]
[315995085,1709317851575,-500.0,0.00022356,2]
[315995086,1709317851587,-266.26,0.00022356,2]
[315995087,1709317851598,-500.0,0.00022356,2]
[315995088,1709317851610,-500.0,0.00022356,2]
[315995089,1709317851622,-500.0,0.00022356,2]
[315995090,1709317851632,-1850.54,0.00022356,2]
[315995091,1709317851643,-500.0,0.00022356,2]
[315995092,1709317851654,-2115.38,0.00022356,2]
[315995093,1709317851665,-500.0,0.00022356,2]
[315995094,1709317851674,-500.0,0.00022356,2]
[315995095,1709317851685,-500.0,0.00022356,2]
[315995096,1709317851696,-404.91590572,0.00022356,2]
[315995097,1709317851706,-500.0,0.00022356,2]
[315995098,1709317851718,-802.17,0.00022356,2]
[315995099,1709317851728,-500.0,0.00022356,2]
[315995100,1709317851738,-500.0,0.00022356,2]
[315995101,1709317851748,-500.0,0.00022356,2]
[315995102,1709317851759,-500.0,0.00022356,2]
[315995103,1709317851769,-650.18,0.00022356,2]